bitfinex-derivatives/quotes_SOLF0:USTF0_20250706
["timestamp","ask_amount","ask_price","bid_price","bid_amount"]
[1751761192829,20.35817556,147.34,147.33,2.35954568]
[1751761193830,13.57287556,147.34,147.33,2.35954568]
[1751761196141,13.57287556,147.34,147.33,9.14534568]
[1751761198936,13.57287556,147.34,147.33,2.35954568]
[1751761201634,13.57437878,147.34,147.33,2.35954568]
[1751761210242,13.57437878,147.34,147.33,9.14534568]
[1751761211540,13.57437878,147.34,147.33,2.35954568]
[1751761214438,13.57437878,147.34,147.32,6.786]
[1751761214745,6.785,147.35,147.33,2.35954568]
[1751761214944,13.56167172,147.34,147.32,6.786]
[1751761215138,6.785,147.35,147.32,6.786]
[1751761215341,13.56167172,147.34,147.32,6.786]
[1751761215539,6.785,147.35,147.32,6.786]
[1751761215746,13.56212348,147.34,147.32,6.786]
[1751761216043,4.72767931,147.33,147.32,6.786]
[1751761216244,4.72767931,147.33,147.32,9.14554568]
[1751761220648,6.7846,147.36,147.32,9.14554568]
[1751761220848,20.96960313,147.35,147.32,6.786]
[1751761221049,13.55924889,147.34,147.32,6.786]
[1751761221250,4.72964903,147.33,147.32,6.786]
[1751761221949,4.72964903,147.33,147.32,9.14554568]
[1751761222850,6.7846,147.36,147.32,9.14554568]
[1751761223155,20.96968427,147.35,147.32,6.786]
[1751761223350,13.55907408,147.34,147.32,6.786]
[1751761223545,4.72975049,147.33,147.32,6.786]
[1751761224151,4.72975049,147.33,147.32,9.14554568]
[1751761226352,6.7849,147.35,147.32,9.14554568]
[1751761226551,6.7849,147.35,147.34,2.35954568]
[1751761226750,27.75386531,147.35,147.34,2.35954568]
[1751761227251,20.96896531,147.35,147.34,2.35954568]
[1751761228357,20.96896531,147.35,147.34,9.14484568]
[1751761228656,11.86485329,147.4,147.34,2.35954568]
[1751761228857,6.7834,147.39,147.38,2.35954568]
[1751761231460,6.7837,147.38,147.37,2.35954568]
[1751761240467,15.55752511,147.38,147.37,2.35954568]
[1751761242973,8.77382511,147.38,147.37,2.35954568]
[1751761244872,15.55762511,147.38,147.35,52.5646]
[1751761245080,8.78004272,147.37,147.36,2.35954568]
[1751761245774,8.78004272,147.37,147.35,45.78]
[1751761245979,11.87264341,147.4,147.36,2.35954568]
[1751761246171,20.31009796,147.39,147.37,2.35954568]
[1751761246478,11.87264341,147.4,147.37,2.35954568]
[1751761246479,20.31009796,147.38,147.37,2.35954568]
[1751761246778,15.54258264,147.38,147.37,2.35954568]
[1751761246979,22.32638264,147.38,147.36,2.35954568]
[1751761247176,8.77793377,147.37,147.36,2.35954568]
[1751761257597,15.56183377,147.37,147.36,2.35954568]
[1751761260192,6.7844,147.36,147.35,45.78]
[1751761260393,15.55479289,147.36,147.35,45.78]
[1751761260593,15.55479289,147.36,147.34,2.35954568]
[1751761260792,6.7844,147.36,147.34,2.35954568]
[1751761260990,6.7844,147.36,147.35,2.35954568]
[1751761261189,15.55414559,147.36,147.35,2.35954568]
[1751761262297,8.76974559,147.36,147.31,45.78]
[1751761262590,17.90399657,147.35,147.31,48.13954568]
[1751761262789,6.7862,147.32,147.31,45.78]
[1751761262995,15.55594559,147.32,147.31,45.78]
[1751761264096,6.7862,147.32,147.31,45.78]
[1751761264395,6.786,147.33,147.31,45.78]
[1751761264595,6.786,147.33,147.31,48.13954568]
[1751761271803,6.786,147.33,147.32,2.35954568]
[1751761272102,15.54352135,147.33,147.32,2.35954568]
[1751761272304,15.54352135,147.33,147.31,45.78]
[1751761272505,6.786,147.33,147.32,2.35954568]
[1751761272704,15.54225232,147.33,147.32,2.35954568]
[1751761273207,6.786,147.33,147.32,2.35954568]
[1751761273703,6.786,147.33,147.31,45.78]
[1751761274005,6.7862,147.32,147.31,45.78]
[1751761275008,6.7862,147.32,147.31,2.35954568]
[1751761281210,2.3413,147.36,147.31,2.35954568]
[1751761281507,2.3413,147.36,147.34,2.35954568]
[1751761281708,6.7857,147.34,147.33,2.35954568]
[1751761294017,6.7851,147.35,147.33,2.35954568]
[1751761294316,11.8213839,147.39,147.34,2.35954568]
[1751761294518,20.16118505,147.38,147.35,2.35954568]
[1751761294821,20.16118505,147.37,147.35,2.35954568]
[1751761295020,8.76779403,147.36,147.35,2.35954568]
[1751761295220,15.55249403,147.36,147.35,2.35954568]
[1751761295520,8.76779403,147.36,147.35,2.35954568]
[1751761295711,6.7834,147.39,147.36,6.7843]
[1751761295907,6.7834,147.39,147.38,2.35954568]
[1751761296216,15.55396612,147.39,147.38,2.35954568]
[1751761296417,17.97231614,147.39,147.38,2.35954568]
[1751761297218,15.55396612,147.39,147.38,2.35954568]
[1751761297421,17.97224936,147.39,147.38,2.35954568]
[1751761298115,15.55396612,147.39,147.38,2.35954568]
[1751761298315,17.97218418,147.39,147.38,2.35954568]
[1751761299120,15.55396612,147.39,147.38,2.35954568]
[1751761299321,17.97212116,147.39,147.38,2.35954568]
[1751761299822,15.55396612,147.39,147.38,2.35954568]
[1751761302025,8.77056612,147.39,147.38,2.35954568]
[1751761303523,6.7828,147.4,147.38,2.35954568]
[1751761303720,6.7828,147.4,147.39,2.35954568]
[1751761304026,15.58913884,147.4,147.39,2.35954568]
[1751761320937,6.7828,147.4,147.39,2.35954568]
[1751761326142,15.60771509,147.4,147.39,2.35954568]
[1751761328840,6.7828,147.4,147.39,2.35954568]
[1751761332148,15.62980348,147.4,147.39,2.35954568]
[1751761335251,8.84700348,147.4,147.39,9.14254568]
[1751761335554,8.84700348,147.4,147.39,2.35954568]
[1751761336651,8.84700348,147.4,147.39,9.14254568]
[1751761344560,6.7819,147.42,147.39,9.14254568]
[1751761344859,6.7819,147.42,147.41,2.35954568]
[1751761345060,27.30735819,147.42,147.41,2.35954568]
[1751761346360,8.87868589,147.42,147.41,2.35954568]
[1751761347463,8.87868589,147.42,147.41,9.14164568]
[1751761350367,12.60842444,147.47,147.39,45.78]
[1751761350368,9.46183822,147.47,147.44,2.35954568]
[1751761350568,9.46183822,147.47,147.46,2.35954568]
[1751761350767,27.90342983,147.47,147.46,2.35954568]
[1751761350968,18.44159161,147.47,147.46,2.35954568]
[1751761352268,6.7798,147.46,147.45,2.35954568]
[1751761352470,18.44209161,147.46,147.45,2.35954568]
[1751761352869,14.02183729,147.46,147.42,2.35954568]
[1751761353070,11.66229161,147.45,147.42,2.35954568]
[1751761353269,2.35954568,147.46,147.42,2.35954568]
[1751761353472,6.7813,147.43,147.42,2.35954568]
[1751761362176,15.57101916,147.43,147.42,2.35954568]
[1751761367283,8.78971916,147.43,147.4,2.35954568]
[1751761367579,8.78971916,147.42,147.4,2.35954568]
[1751761367769,6.7824,147.41,147.4,2.35954568]
[1751761371275,8.77274481,147.41,147.38,2.35954568]
[1751761371581,11.19326666,147.4,147.38,2.35954568]
[1751761371776,8.77274481,147.39,147.38,2.35954568]
[1751761374084,15.55574481,147.39,147.38,2.35954568]
[1751761376484,6.783,147.39,147.38,2.35954568]
[1751761377685,2.35954568,147.41,147.35,45.82]
[1751761377984,22.49249849,147.4,147.36,2.35954568]
[1751761378181,20.13295281,147.39,147.36,2.35954568]
[1751761378381,8.72487686,147.38,147.36,2.35954568]
[1751761378582,4.62884568,147.4,147.36,2.35954568]
[1751761378886,20.12580941,147.39,147.36,2.35954568]
[1751761379179,8.72101658,147.38,147.36,2.35954568]
[1751761379384,4.62884568,147.4,147.36,2.35954568]
[1751761379587,6.7843,147.37,147.36,2.35954568]
[1751761381484,6.7843,147.37,147.35,45.82]
[1751761381485,6.7843,147.37,147.35,48.17954568]
[1751761381983,2.35954568,147.39,147.35,48.17954568]
[1751761382179,8.69879756,147.38,147.35,48.17954568]
[1751761382380,2.35954568,147.39,147.35,48.17954568]
[1751761382576,8.69652088,147.38,147.35,48.17954568]
[1751761382773,2.35954568,147.39,147.35,48.17954568]
[1751761382974,8.69652088,147.38,147.35,48.17954568]
[1751761383173,2.35954568,147.39,147.35,48.17954568]
[1751761383374,8.69621434,147.38,147.35,48.17954568]
[1751761383587,6.7844,147.36,147.35,48.17954568]
[1751761386583,6.7844,147.36,147.35,2.35954568]
[1751761387502,6.7849,147.35,147.34,2.35954568]
[1751761388587,6.7854,147.34,147.33,2.35954568]
[1751761393086,6.7858,147.33,147.32,2.35954568]
[1751761395187,6.7862,147.32,147.31,45.84]
[1751761395392,6.7862,147.32,147.31,48.19954568]
[1751761415113,6.7862,147.32,147.31,45.84]
[1751761415315,6.7862,147.32,147.31,48.19954568]
[1751761428628,6.7874,147.3,147.27,45.82]
[1751761428826,2.35954568,147.33,147.29,2.35954568]
[1751761429026,8.61489975,147.32,147.29,2.35954568]
[1751761429226,2.35954568,147.33,147.29,2.35954568]
[1751761429428,6.7872,147.3,147.29,2.35954568]
[1751761430433,6.7872,147.3,147.27,52.6082]
[1751761430630,6.7872,147.3,147.29,2.35954568]
[1751761438632,6.7872,147.3,147.27,52.6082]
[1751761438939,6.7872,147.3,147.29,2.35954568]
[1751761439829,6.7872,147.3,147.28,2.35954568]
[1751761441839,8.60692308,147.29,147.27,48.17954568]
[1751761442142,8.60584429,147.28,147.25,2.35954568]
[1751761442341,6.789,147.27,147.25,2.35954568]
[1751761442642,2.35954568,147.29,147.25,2.35954568]
[1751761442843,6.789,147.27,147.25,2.35954568]
[1751761444038,6.7891,147.26,147.23,52.6301]
[1751761444234,6.7891,147.26,147.24,2.35954568]
[1751761445442,4.98528664,147.25,147.24,2.35954568]
[1751761445637,11.77478664,147.25,147.24,2.35954568]
[1751761446346,6.7899,147.24,147.23,45.84]
[1751761446544,6.7899,147.24,147.23,48.19954568]
[1751761447647,6.7899,147.24,147.23,45.84]
[1751761449748,6.7899,147.24,147.22,2.35954568]
[1751761450846,6.7899,147.24,147.23,2.35954568]
[1751761451048,11.76655283,147.24,147.23,2.35954568]
[1751761451348,6.7899,147.24,147.23,2.35954568]
[1751761451948,11.76480864,147.24,147.23,2.35954568]
[1751761452743,11.76480864,147.24,147.22,2.35954568]
[1751761452947,6.7904,147.23,147.22,2.35954568]
[1751761454748,6.7904,147.23,147.21,2.35954568]
[1751761454950,2.35954568,147.24,147.2,2.35954568]
[1751761455646,6.7912,147.22,147.2,2.35954568]
[1751761456155,6.7913,147.21,147.2,2.35954568]
[1751761460953,45.84,147.27,147.2,2.35954568]
[1751761461154,4.94871606,147.26,147.23,2.35954568]
[1751761461355,4.94871606,147.25,147.23,2.35954568]
[1751761461550,6.7903,147.24,147.23,2.35954568]
[1751761466057,6.7903,147.24,147.22,2.35954568]
[1751761468051,6.7903,147.24,147.23,2.35954568]
[1751761471159,11.761231,147.24,147.23,2.35954568]
[1751761472156,4.970931,147.24,147.23,2.35954568]
[1751761472356,6.7896,147.25,147.23,2.35954568]
[1751761472962,45.84,147.27,147.24,2.35954568]
[1751761473260,4.97217491,147.26,147.24,2.35954568]
[1751761473464,6.7895,147.25,147.24,2.35954568]
[1751761476251,11.76464374,147.25,147.24,2.35954568]
[1751761482269,6.7895,147.25,147.24,2.35954568]
[1751761482962,6.7891,147.26,147.24,2.35954568]
[1751761484479,6.7895,147.25,147.24,2.35954568]
[1751761486968,11.78988041,147.25,147.24,2.35954568]
[1751761487168,11.79661993,147.25,147.24,2.35954568]
[1751761487668,11.79864635,147.25,147.24,2.35954568]
[1751761490473,11.79864635,147.25,147.23,2.35954568]
[1751761490685,5.00914635,147.24,147.23,2.35954568]
[1751761490972,11.79914635,147.24,147.23,2.35954568]
[1751761492870,6.7904,147.23,147.22,2.35954568]
[1751761493078,11.79954635,147.23,147.22,2.35954568]
[1751761493267,11.80441595,147.23,147.22,2.35954568]
[1751761494578,11.80441595,147.23,147.21,2.35954568]
[1751761494781,5.01401595,147.22,147.21,2.35954568]
[1751761495577,11.80491595,147.22,147.21,2.35954568]
[1751761502083,5.01401595,147.22,147.21,2.35954568]
[1751761510683,5.01401595,147.22,147.21,2.35954568]
[1751761510982,5.01401595,147.22,147.21,9.15084568]
[1751761511685,5.01401595,147.22,147.21,6.7913]
[1751761511886,5.01401595,147.22,147.21,9.15084568]
[1751761520485,5.01401595,147.22,147.21,6.7913]
[1751761520685,5.01401595,147.22,147.21,9.15084568]
[1751761521993,5.01401595,147.22,147.21,2.35954568]
[1751761530004,5.01401595,147.22,147.2,6.7915]
[1751761530198,6.7904,147.23,147.21,2.35954568]
[1751761530399,4.81234594,147.22,147.21,2.35954568]
[1751761531600,4.81234594,147.22,147.19,45.84]
[1751761531801,4.81234594,147.21,147.19,45.84]
[1751761532001,4.81234594,147.2,147.19,45.84]
[1751761532403,4.81234594,147.2,147.18,9.15204568]
[1751761532706,6.7917,147.21,147.18,9.15204568]
[1751761532900,4.80118188,147.2,147.18,9.15204568]
[1751761533100,6.7917,147.21,147.18,9.15204568]
[1751761533304,4.80090506,147.2,147.18,9.15204568]
[1751761533609,6.7917,147.21,147.18,9.15204568]
[1751761533806,4.80090506,147.2,147.18,9.15204568]
[1751761534003,6.7917,147.21,147.18,9.15204568]
[1751761534204,4.80090506,147.2,147.18,9.15204568]
[1751761534396,6.7917,147.21,147.18,9.15204568]
[1751761534597,4.80074269,147.2,147.18,9.15204568]
[1751761534795,6.7917,147.21,147.18,9.15204568]
[1751761535000,4.80112803,147.2,147.18,9.15204568]
[1751761535305,6.7918,147.2,147.18,9.15204568]
[1751761536701,2.35954568,147.21,147.16,103.4271274]
[1751761536905,21.20031794,147.2,147.16,2.35954568]
[1751761537102,13.50174639,147.19,147.16,2.35954568]
[1751761537295,6.7925,147.19,147.16,9.15294568]
[1751761539407,4.79077241,147.18,147.16,9.15294568]
[1751761539606,6.7925,147.19,147.16,9.15294568]
[1751761539909,7.15022193,147.18,147.15,45.84]
[1751761540108,2.35954568,147.18,147.15,45.84]
[1751761540307,6.7934,147.17,147.15,45.84]
[1751761541710,6.7936,147.16,147.15,45.84]
[1751761542106,2.35954568,147.19,147.15,45.84]
[1751761542107,6.7934,147.17,147.15,45.84]
[1751761542310,6.7934,147.17,147.15,48.19954568]
[1751761543411,6.7936,147.16,147.15,48.19954568]
[1751761544210,2.35954568,147.18,147.07,586.6]
[1751761544416,2.3251,147.22,147.11,45.86]
[1751761544417,2.35954568,147.16,147.11,45.86]
[1751761544615,4.73834515,147.15,147.12,2.35954568]
[1751761544809,2.35954568,147.17,147.12,2.35954568]
[1751761545011,6.7949,147.14,147.12,2.35954568]
[1751761549918,6.7949,147.14,147.12,9.15504568]
[1751761552920,6.7943,147.15,147.13,6.7949]
[1751761553222,6.7943,147.15,147.13,9.15444568]
[1751761553622,6.7943,147.15,147.13,2.35954568]
[1751761554314,6.7943,147.15,147.12,6.7953]
[1751761554513,6.7943,147.15,147.13,2.35954568]
[1751761557726,2.35954568,147.18,147.14,2.35954568]
[1751761558824,4.616,147.19,147.15,2.35954568]
[1751761559124,6.97554568,147.19,147.15,2.35954568]
[1751761559526,6.7935,147.17,147.15,2.35954568]
[1751761560428,6.97554568,147.19,147.14,6.7944]
[1751761560623,2.35954568,147.18,147.14,2.35954568]
[1751761561130,2.35954568,147.18,147.13,6.7948]
[1751761561325,2.35954568,147.18,147.14,2.35954568]
[1751761561623,6.7939,147.16,147.14,2.35954568]
[1751761562730,6.7939,147.16,147.13,9.15434568]
[1751761566132,6.7939,147.16,147.14,2.35954568]
[1751761569621,6.7939,147.16,147.15,2.35954568]
[1751761581141,11.5035891,147.16,147.15,2.35954568]
[1751761584149,16.73673583,147.16,147.15,2.35954568]
[1751761587040,16.73367937,147.16,147.15,2.35954568]
[1751761587951,9.93977937,147.16,147.15,9.15364568]
[1751761588251,4.70663264,147.16,147.15,9.15364568]
[1751761595966,4.73087942,147.16,147.15,9.15364568]
[1751761603462,4.7527631,147.16,147.15,9.15364568]
[1751761607270,6.7919,147.2,147.17,6.7931]
[1751761607567,15.89664296,147.19,147.18,2.35954568]
[1751761610877,13.54002341,147.19,147.18,2.35954568]
[1751761611175,15.8964802,147.19,147.18,2.35954568]
[1751761613176,13.54002341,147.19,147.18,2.35954568]
[1751761616078,8.66780448,147.19,147.18,2.35954568]
[1751761617480,8.67561126,147.19,147.18,2.35954568]
[1751761617679,6.7915,147.21,147.18,2.35954568]
[1751761617978,15.88581536,147.2,147.19,2.35954568]
[1751761618682,7.21019655,147.2,147.19,2.35954568]
[1751761618879,15.88597472,147.2,147.19,2.35954568]
[1751761619179,18.21727273,147.2,147.19,2.35954568]
[1751761619669,13.36119209,147.2,147.19,2.35954568]
[1751761619869,2.3323,147.24,147.19,2.35954568]
[1751761620073,20.57545737,147.23,147.22,2.35954568]
[1751761620480,22.50995825,147.23,147.22,2.35954568]
[1751761621481,20.15417061,147.23,147.22,2.35954568]
[1751761622281,13.36367061,147.23,147.22,2.35954568]
[1751761625185,4.68592254,147.23,147.22,2.35954568]
[1751761626282,6.7902,147.24,147.22,2.35954568]
[1751761626481,6.7902,147.24,147.23,2.35954568]
[1751761632578,6.7902,147.24,147.22,2.35954568]
[1751761634180,6.7902,147.24,147.21,6.7913]
[1751761634385,6.7905,147.23,147.21,2.35954568]
[1751761638689,6.7905,147.23,147.2,6.7916]
[1751761638889,6.7905,147.23,147.21,2.35954568]
[1751761660598,4.68504568,147.25,147.21,2.35954568]
[1751761660791,15.67039921,147.24,147.21,2.35954568]
[1751761660987,13.31845042,147.23,147.21,2.35954568]
[1751761661192,4.60692203,147.22,147.21,2.35954568]
[1751761663395,13.32925655,147.22,147.21,2.35954568]
[1751761672911,8.72233452,147.22,147.21,2.35954568]
[1751761673112,13.33664963,147.22,147.21,2.35954568]
[1751761674511,4.61431511,147.22,147.21,2.35954568]
[1751761676712,9.7444504,147.22,147.21,2.35954568]
[1751761677314,18.47829224,147.22,147.21,2.35954568]
[1751761678410,18.47829224,147.22,147.21,9.15084568]
[1751761678611,8.73384184,147.22,147.21,9.15084568]
[1751761678817,9.46496824,147.26,147.21,2.35954568]
[1751761679017,9.46496824,147.27,147.25,2.35954568]
[1751761679317,12.10599197,147.26,147.25,2.35954568]
[1751761679611,9.74851247,147.26,147.25,2.35954568]
[1751761679806,9.46496824,147.29,147.25,2.35954568]
[1751761680011,9.46496824,147.3,147.28,2.35954568]
[1751761680211,9.46496824,147.3,147.29,2.35954568]
[1751761680407,2.35851784,147.3,147.27,45.84]
[1751761680612,9.46496824,147.32,147.28,2.35954568]
[1751761680808,2.35832442,147.31,147.29,2.35954568]
[1751761681016,2.35832442,147.3,147.29,2.35954568]
[1751761681714,6.7865,147.32,147.29,2.35954568]
[1751761681914,2.35506227,147.31,147.3,2.35954568]
[1751761682316,6.7865,147.32,147.3,2.35954568]
[1751761682918,6.7867,147.31,147.3,2.35954568]
[1751761683821,6.7867,147.31,147.27,52.6285]
[1751761684018,6.7867,147.31,147.28,2.35954568]
[1751761684221,9.14594568,147.32,147.29,2.35954568]
[1751761684421,6.7864,147.32,147.29,2.35954568]
[1751761684622,2.35954568,147.33,147.29,2.35954568]
[1751761684825,2.35041841,147.32,147.29,2.35954568]
[1751761685018,2.35954568,147.33,147.29,2.35954568]
[1751761685219,9.13701841,147.32,147.29,2.35954568]
[1751761685524,2.35954568,147.33,147.29,2.35954568]
[1751761686325,2.35954568,147.31,147.27,45.84]
[1751761686524,2.35954568,147.31,147.27,48.19954568]
[1751761686915,6.7874,147.3,147.27,48.19954568]
[1751761688525,6.7874,147.3,147.28,2.35954568]
[1751761689227,6.7874,147.3,147.27,52.6285]
[1751761689432,6.7874,147.3,147.28,2.35954568]
[1751761701337,6.7874,147.3,147.28,9.14754568]
[1751761701542,6.7869,147.31,147.29,2.35954568]
[1751761704237,6.7872,147.3,147.29,2.35954568]
[1751761706440,2.365,147.35,147.29,2.35954568]
[1751761706634,2.365,147.35,147.33,2.35954568]
[1751761707137,6.7853,147.34,147.33,2.35954568]
[1751761710748,6.7861,147.33,147.32,2.35954568]
[1751761712946,6.7861,147.33,147.3,6.787]
[1751761713153,6.7861,147.33,147.32,2.35954568]
[1751761722765,6.7855,147.34,147.32,2.35954568]
[1751761724562,6.7855,147.34,147.32,9.14574568]
[1751761725064,6.7855,147.34,147.32,2.35954568]
[1751761725265,6.7851,147.35,147.33,2.35954568]
[1751761725568,2.3204,147.36,147.33,2.35954568]
[1751761726263,6.7849,147.35,147.33,2.35954568]
[1751761726470,6.7849,147.35,147.34,2.35954568]
[1751761730664,13.98636784,147.4,147.34,2.35954568]
[1751761730665,6.7845,147.36,147.34,2.35954568]
[1751761730869,6.7845,147.36,147.35,2.35954568]
[1751761731463,6.7841,147.37,147.35,2.35954568]
[1751761731769,6.7841,147.37,147.36,2.35954568]
[1751761731973,21.94861282,147.37,147.36,2.35954568]
[1751761732765,6.7835,147.38,147.36,2.35954568]
[1751761732973,6.90024568,147.4,147.36,2.35954568]
[1751761733269,6.7839,147.37,147.36,2.35954568]
[1751761733467,6.90024568,147.4,147.36,2.35954568]
[1751761733668,15.18138341,147.39,147.36,2.35954568]
[1751761733864,6.90024568,147.4,147.36,2.35954568]
[1751761734065,15.18138341,147.39,147.36,2.35954568]
[1751761734265,6.90024568,147.4,147.36,2.35954568]
[1751761734266,6.7836,147.38,147.36,2.35954568]
[1751761735573,6.7839,147.37,147.36,2.35954568]
[1751761740976,6.7837,147.38,147.36,9.14394568]
[1751761741176,9.44566784,147.43,147.37,2.35954568]
[1751761741376,19.7702741,147.42,147.39,2.35954568]
[1751761741674,6.7826,147.4,147.39,2.35954568]
[1751761744576,107.28314754,147.45,147.35,45.82]
[1751761744783,2.35954568,147.4,147.36,2.35954568]
[1751761746469,6.7839,147.38,147.36,2.35954568]
[1751761746774,6.7839,147.38,147.3,7.052]
[1751761746775,2.35954568,147.38,147.34,2.35954568]
[1751761747278,6.7849,147.35,147.34,2.35954568]
[1751761749675,6.7853,147.34,147.32,2.35954568]
[1751761749984,4.6409,147.39,147.33,2.35954568]
[1751761750280,4.6409,147.39,147.34,2.35954568]
[1751761750281,6.7846,147.36,147.34,2.35954568]
[1751761755886,6.7846,147.36,147.35,2.35954568]
[1751761761998,6.7846,147.36,147.34,2.35954568]
[1751761763401,6.7849,147.35,147.34,2.35954568]
[1751761786422,2.35954568,147.37,147.31,45.82]
[1751761786619,15.35611381,147.36,147.33,2.35954568]
[1751761786920,8.57338579,147.35,147.33,2.35954568]
[1751761787121,2.35954568,147.37,147.33,2.35954568]
[1751761787319,15.34832604,147.36,147.33,2.35954568]
[1751761787521,6.7853,147.34,147.33,2.35954568]
[1751761789322,15.36948964,147.34,147.32,2.35954568]
[1751761789524,6.7853,147.34,147.32,2.35954568]
[1751761792421,6.7853,147.34,147.33,2.35954568]
[1751761792625,19.79291445,147.34,147.33,2.35954568]
[1751761795128,15.37189148,147.34,147.33,2.35954568]
[1751761801438,8.58659148,147.34,147.33,2.35954568]
[1751761812150,13.00769026,147.34,147.33,2.35954568]
[1751761814148,19.79299026,147.34,147.33,2.35954568]
[1751761814451,17.77554409,147.34,147.29,2.35954568]
[1751761814756,19.79389026,147.33,147.31,2.35954568]
[1751761814956,8.58659148,147.32,147.31,2.35954568]
[1751761815250,15.37279148,147.32,147.3,2.35954568]
[1751761815450,2.35954568,147.34,147.3,2.35954568]
[1751761815652,10.9913276,147.33,147.3,2.35954568]
[1751761815851,13.00387706,147.32,147.3,2.35954568]
[1751761816052,6.786,147.33,147.3,9.14664568]
[1751761816351,11.78834801,147.36,147.32,2.35954568]
[1751761816546,19.97449343,147.35,147.33,2.35954568]
[1751761816746,15.40876555,147.34,147.33,2.35954568]
[1751761817855,22.19416555,147.34,147.32,2.35954568]
[1751761818054,15.40876555,147.33,147.32,2.35954568]
[1751761818255,13.00149435,147.33,147.32,2.35954568]
[1751761818755,12.98970695,147.33,147.32,2.35954568]
[1751761819160,19.77550695,147.33,147.32,2.35954568]
[1751761820959,6.7862,147.32,147.31,2.35954568]
[1751761821260,4.44540868,147.32,147.3,2.35954568]
[1751761821447,2.35954568,147.35,147.3,2.35954568]
[1751761821651,6.7862,147.33,147.3,9.14664568]
[1751761822558,6.7862,147.33,147.31,2.35954568]
[1751761822959,6.7862,147.32,147.3,9.14664568]
[1751761840167,6.7862,147.32,147.31,2.35954568]
[1751761840572,6.7872,147.3,147.29,45.84]
[1751761840960,2.35954568,147.32,147.25,45.82]
[1751761841171,2.35954568,147.28,147.25,45.82]
[1751761841370,2.35954568,147.27,147.25,45.82]
[1751761841571,6.789,147.26,147.25,45.82]
[1751761844169,6.7887,147.27,147.25,45.82]
[1751761844875,6.789,147.26,147.25,45.82]
[1751761845977,6.7887,147.27,147.25,45.82]
[1751761847472,6.7887,147.27,147.25,48.17954568]
[1751761850273,6.789,147.26,147.25,48.17954568]
[1751761850471,6.789,147.26,147.25,45.82]
[1751761850666,2.35954568,147.28,147.22,586.12]
[1751761850873,2.35954568,147.25,147.21,45.84]
[1751761851176,2.35954568,147.26,147.22,2.35954568]
[1751761851376,2.35954568,147.26,147.21,45.84]
[1751761851570,2.35954568,147.26,147.22,2.35954568]
[1751761852176,4.79989316,147.25,147.22,2.35954568]
[1751761852479,4.79989316,147.24,147.22,2.35954568]
[1751761852673,4.5942,147.27,147.22,2.35954568]
[1751761852979,4.79806436,147.26,147.23,2.35954568]
[1751761853278,11.58756436,147.25,147.24,2.35954568]
[1751761853582,11.58756436,147.25,147.23,2.35954568]
[1751761853880,6.7895,147.25,147.23,2.35954568]
[1751761858383,6.7895,147.25,147.23,9.14994568]
[1751761858587,6.95374568,147.27,147.21,45.84]
[1751761858588,6.7892,147.26,147.24,2.35954568]
[1751761859581,6.7895,147.25,147.22,6.7906]
[1751761859783,6.7895,147.25,147.24,2.35954568]
[1751761861589,6.7891,147.26,147.24,2.35954568]
[1751761862385,6.7895,147.25,147.24,2.35954568]
[1751761865694,6.7895,147.25,147.23,2.35954568]
[1751761872500,6.7902,147.24,147.22,2.35954568]
[1751761872898,2.35954568,147.24,147.21,45.84]
[1751761873097,6.7904,147.23,147.21,45.84]
[1751761878207,2.35954568,147.24,147.21,45.84]
[1751761878414,2.35954568,147.22,147.17,48.29954568]
[1751761878616,2.35954568,147.2,147.17,45.94]
[1751761879107,6.7925,147.19,147.17,45.94]
[1751761879914,6.7925,147.19,147.17,52.7331]
[1751761880213,2.35954568,147.2,147.17,45.94]
[1751761880415,2.35954568,147.21,147.17,45.94]
[1751761880911,2.35954568,147.21,147.17,48.29954568]
[1751761881514,6.7923,147.19,147.17,48.29954568]
[1751761883820,6.7927,147.18,147.17,48.29954568]
[1751761884020,6.7927,147.18,147.17,45.94]
[1751761884319,6.7927,147.18,147.11,2.3771]
[1751761884320,2.35954568,147.18,147.13,240.42]
[1751761884519,2.35954568,147.18,147.14,9.15394568]
[1751761885413,6.7936,147.17,147.14,9.15394568]
[1751761885814,2.35954568,147.18,147.14,9.15394568]
[1751761886014,6.7937,147.16,147.14,2.35954568]
[1751761887313,6.7941,147.15,147.13,48.29954568]
[1751761888712,6.7941,147.15,147.13,55.09454568]
[1751761888912,2.35954568,147.17,147.13,55.09454568]
[1751761888913,6.7938,147.16,147.13,55.09454568]
[1751761889223,6.7938,147.16,147.14,2.35954568]
[1751761895925,6.7938,147.16,147.13,52.7348]
[1751761896126,6.7941,147.15,147.14,2.35954568]